[Event "Titled Tuesday Blitz December 27 Early 2022"]
[White "Sharifov, Mekhriddin"]
[Black "Kabanov, Nikolai"]
[WhiteFideId "14701545"]
[BlackFideId "4127820"]
[WhiteElo "2209"]
[BlackElo "2429"]
[Result "1-0"]
[Round "05"]
[TimeControl "180+2"]
[Date "2022.12.27"]
[WhiteClock "0:00:06"]
[BlackClock "0:00:10"]

1. e4 {[%clk 0:03:00]}  c6 {[%clk 0:02:58]} 2. d4 {[%clk 0:03:00]}  d5 {[%clk 0:02:58]} 3. Nc3 {[%clk 0:03:01]}  dxe4 {[%clk 0:02:58]} 4. Nxe4 {[%clk 0:03:02]}  Nf6 {[%clk 0:02:58]} 5. Nxf6+ {[%clk 0:02:56]}  exf6 {[%clk 0:02:59]} 6. Bc4 {[%clk 0:02:57]}  Bd6 {[%clk 0:02:58]} 7. Qe2+ {[%clk 0:02:57]}  Qe7 {[%clk 0:02:56]} 8. Qxe7+ {[%clk 0:02:58]}  Kxe7 {[%clk 0:02:55]} 9. Ne2 {[%clk 0:02:59]}  Be6 {[%clk 0:02:54]} 10. Bd3 {[%clk 0:02:59]}  Nd7 {[%clk 0:02:53]} 11. O-O {[%clk 0:02:59]}  Nb6 {[%clk 0:02:50]} 12. Bf4 {[%clk 0:02:58]}  Rhd8 {[%clk 0:02:46]} 13. c3 {[%clk 0:02:55]}  Bc4 {[%clk 0:02:41]} 14. Bxc4 {[%clk 0:02:50]}  Nxc4 {[%clk 0:02:42]} 15. b3 {[%clk 0:02:51]}  Bxf4 {[%clk 0:02:26]} 16. Nxf4 {[%clk 0:02:46]}  Nd6 {[%clk 0:02:26]} 17. Rfe1+ {[%clk 0:02:45]}  Kf8 {[%clk 0:02:26]} 18. f3 {[%clk 0:02:42]}  a5 {[%clk 0:02:01]} 19. a4 {[%clk 0:02:37]}  b5 {[%clk 0:02:00]} 20. Nd3 {[%clk 0:02:20]}  Rdb8 {[%clk 0:01:53]} 21. Nc5 {[%clk 0:02:19]}  Ra7 {[%clk 0:01:52]} 22. axb5 {[%clk 0:01:55]}  Rxb5 {[%clk 0:01:47]} 23. Ra4 {[%clk 0:01:49]}  Re7 {[%clk 0:01:33]} 24. Rxe7 {[%clk 0:01:42]}  Kxe7 {[%clk 0:01:34]} 25. c4 {[%clk 0:01:37]}  Rb4 {[%clk 0:01:24]} 26. Rxa5 {[%clk 0:01:35]}  Nf5 {[%clk 0:01:23]} 27. Ra7+ {[%clk 0:01:32]}  Ke8 {[%clk 0:01:23]} 28. Ra8+ {[%clk 0:01:01]}  Ke7 {[%clk 0:01:21]} 29. Ra7+ {[%clk 0:01:01]}  Ke8 {[%clk 0:01:21]} 30. d5 {[%clk 0:01:00]}  cxd5 {[%clk 0:01:18]} 31. cxd5 {[%clk 0:01:01]}  Rb5 {[%clk 0:01:17]} 32. Rc7 {[%clk 0:01:00]}  Kd8 {[%clk 0:01:10]} 33. d6 {[%clk 0:00:37]}  Nxd6 {[%clk 0:01:06]} 34. Rd7+ {[%clk 0:00:37]}  Ke8 {[%clk 0:01:06]} 35. Rxd6 {[%clk 0:00:38]}  Rxc5 {[%clk 0:01:06]} 36. Rd1 {[%clk 0:00:36]}  Rc2 {[%clk 0:01:01]} 37. Rb1 {[%clk 0:00:35]}  Kd7 {[%clk 0:01:01]} 38. h4 {[%clk 0:00:34]}  h5 {[%clk 0:00:59]} 39. Kh2 {[%clk 0:00:32]}  Kc6 {[%clk 0:00:59]} 40. Kh3 {[%clk 0:00:32]}  f5 {[%clk 0:00:56]} 41. Kg3 {[%clk 0:00:25]}  g6 {[%clk 0:00:51]} 42. Kh3 {[%clk 0:00:20]}  Kb5 {[%clk 0:00:48]} 43. Kg3 {[%clk 0:00:19]}  Kb4 {[%clk 0:00:47]} 44. Re1 {[%clk 0:00:18]}  Rc7 {[%clk 0:00:40]} 45. Re3 {[%clk 0:00:18]}  Rc3 {[%clk 0:00:38]} 46. Re7 {[%clk 0:00:16]}  Kxb3 {[%clk 0:00:38]} 47. Rxf7 {[%clk 0:00:17]}  Rc6 {[%clk 0:00:38]} 48. Kf4 {[%clk 0:00:16]}  Kc3 {[%clk 0:00:38]} 49. Rd7 {[%clk 0:00:16]}  Re6 {[%clk 0:00:36]} 50. Kg5 {[%clk 0:00:16]}  Re2 {[%clk 0:00:35]} 51. Kxg6 {[%clk 0:00:16]}  Rxg2+ {[%clk 0:00:35]} 52. Kxf5 {[%clk 0:00:15]}  Rg3 {[%clk 0:00:33]} 53. f4 {[%clk 0:00:15]}  Rg4 {[%clk 0:00:33]} 54. Ke5 {[%clk 0:00:13]}  Rxh4 {[%clk 0:00:33]} 55. f5 {[%clk 0:00:13]}  Rh2 {[%clk 0:00:29]} 56. f6 {[%clk 0:00:13]}  Rf2 {[%clk 0:00:27]} 57. Rh7 {[%clk 0:00:12]}  Kc4 {[%clk 0:00:21]} 58. Rxh5 {[%clk 0:00:11]}  Kc5 {[%clk 0:00:21]} 59. Ke6+ {[%clk 0:00:11]}  Kc6 {[%clk 0:00:20]} 60. Ke7 {[%clk 0:00:10]}  Re2+ {[%clk 0:00:18]} 61. Kf8 {[%clk 0:00:09]}  Kd7 {[%clk 0:00:18]} 62. f7 {[%clk 0:00:09]}  Rg2 {[%clk 0:00:17]} 63. Rh1 {[%clk 0:00:07]}  Rg3 {[%clk 0:00:16]} 64. Rd1+ {[%clk 0:00:07]}  Kc7 {[%clk 0:00:15]} 65. Rd4 {[%clk 0:00:06]}  Rg2 {[%clk 0:00:13]} 66. Ke7 {[%clk 0:00:05]}  Re2+ {[%clk 0:00:12]} 67. Kf6 {[%clk 0:00:06]}  Rf2+ {[%clk 0:00:10]} 68. Ke6 {[%clk 0:00:06]} 1-0


[Site "https://www.chess.com"]

[Event "Titled Tuesday Blitz December 27 Early 2022"]
[White "Shuvalov, Evgenij"]
[Black "Troltenier, Dirk"]
[WhiteFideId "4187237"]
[BlackFideId "4606400"]
[WhiteElo "2038"]
[BlackElo "2234"]
[Result "1-0"]
[Round "05"]
[TimeControl "180+2"]
[Date "2022.12.27"]
[WhiteClock "0:01:05"]
[BlackClock "0:00:11"]

1. d4 {[%clk 0:03:00]}  d5 {[%clk 0:02:59]} 2. c4 {[%clk 0:03:01]}  c6 {[%clk 0:02:59]} 3. Nf3 {[%clk 0:03:00]}  Nf6 {[%clk 0:02:59]} 4. Nc3 {[%clk 0:03:01]}  e6 {[%clk 0:02:58]} 5. cxd5 {[%clk 0:02:58]}  exd5 {[%clk 0:02:55]} 6. Bg5 {[%clk 0:02:58]}  Nbd7 {[%clk 0:02:52]} 7. e3 {[%clk 0:02:57]}  h6 {[%clk 0:02:51]} 8. Bh4 {[%clk 0:02:57]}  g5 {[%clk 0:02:50]} 9. Bg3 {[%clk 0:02:56]}  Nh5 {[%clk 0:02:50]} 10. Be5 {[%clk 0:02:54]}  Nxe5 {[%clk 0:02:34]} 11. Nxe5 {[%clk 0:02:51]}  Nf6 {[%clk 0:02:26]} 12. Bd3 {[%clk 0:02:39]}  Be6 {[%clk 0:02:20]} 13. h4 {[%clk 0:02:35]}  Bg7 {[%clk 0:02:12]} 14. hxg5 {[%clk 0:02:28]}  hxg5 {[%clk 0:02:13]} 15. Rxh8+ {[%clk 0:02:28]}  Bxh8 {[%clk 0:02:13]} 16. Qf3 {[%clk 0:02:28]}  Qe7 {[%clk 0:01:56]} 17. O-O-O {[%clk 0:02:26]}  O-O-O {[%clk 0:01:51]} 18. Kb1 {[%clk 0:02:23]}  Nd7 {[%clk 0:01:48]} 19. Nxc6 {[%clk 0:01:55]}  bxc6 {[%clk 0:01:13]} 20. Ba6+ {[%clk 0:01:55]}  Kc7 {[%clk 0:01:13]} 21. Qg3+ {[%clk 0:01:49]}  Kb6 {[%clk 0:01:13]} 22. Bd3 {[%clk 0:01:47]}  Nb8 {[%clk 0:00:58]} 23. Na4+ {[%clk 0:01:46]}  Kb7 {[%clk 0:00:56]} 24. Nc5+ {[%clk 0:01:45]}  Ka8 {[%clk 0:00:56]} 25. Rc1 {[%clk 0:01:42]}  Bf6 {[%clk 0:00:49]} 26. Rc3 {[%clk 0:01:40]}  Qd6 {[%clk 0:00:44]} 27. Qf3 {[%clk 0:01:36]}  Be7 {[%clk 0:00:43]} 28. Rb3 {[%clk 0:01:34]}  Rc8 {[%clk 0:00:38]} 29. Qe2 {[%clk 0:01:28]}  Qd8 {[%clk 0:00:32]} 30. Qd2 {[%clk 0:01:24]}  Bxc5 {[%clk 0:00:30]} 31. dxc5 {[%clk 0:01:25]}  Nd7 {[%clk 0:00:27]} 32. Qc3 {[%clk 0:01:19]}  Rb8 {[%clk 0:00:27]} 33. Ra3 {[%clk 0:01:19]}  Qc7 {[%clk 0:00:22]} 34. f4 {[%clk 0:01:14]}  gxf4 {[%clk 0:00:21]} 35. exf4 {[%clk 0:01:13]}  Qxf4 {[%clk 0:00:15]} 36. Rxa7+ {[%clk 0:01:05]}  Kxa7 {[%clk 0:00:12]} 37. Qa5+ {[%clk 0:01:06]}  Kb7 {[%clk 0:00:11]} 38. Ba6+ {[%clk 0:01:06]}  Ka7 {[%clk 0:00:11]} 39. Bc8# {[%clk 0:01:05]} 1-0


[Site "https://www.chess.com"]

[Event "Titled Tuesday Blitz December 27 Early 2022"]
[White "Silva, Miguel Antonio Neto"]
[Black "Albertini, Luca"]
[WhiteFideId "1911929"]
[BlackFideId "847038"]
[WhiteElo "2204"]
[BlackElo "2084"]
[Result "0-1"]
[Round "05"]
[TimeControl "180+2"]
[Date "2022.12.27"]
[WhiteClock "0:00:11"]
[BlackClock "0:00:23"]

1. e4 {[%clk 0:03:00]}  d6 {[%clk 0:03:00]} 2. d4 {[%clk 0:02:59]}  g6 {[%clk 0:03:01]} 3. Nf3 {[%clk 0:02:58]}  Nf6 {[%clk 0:03:02]} 4. Nc3 {[%clk 0:02:54]}  Bg7 {[%clk 0:03:02]} 5. Be2 {[%clk 0:02:52]}  O-O {[%clk 0:03:03]} 6. O-O {[%clk 0:02:48]}  Nc6 {[%clk 0:03:04]} 7. d5 {[%clk 0:02:47]}  Nb8 {[%clk 0:02:58]} 8. a4 {[%clk 0:02:46]}  e5 {[%clk 0:02:56]} 9. h3 {[%clk 0:02:43]}  Ne8 {[%clk 0:02:52]} 10. Nd2 {[%clk 0:02:36]}  f5 {[%clk 0:02:52]} 11. Nc4 {[%clk 0:02:29]}  f4 {[%clk 0:02:50]} 12. Bg4 {[%clk 0:02:21]}  h5 {[%clk 0:02:48]} 13. Bxc8 {[%clk 0:02:20]}  Qxc8 {[%clk 0:02:49]} 14. f3 {[%clk 0:02:16]}  g5 {[%clk 0:02:49]} 15. Kf2 {[%clk 0:02:16]}  g4 {[%clk 0:02:49]} 16. Ke2 {[%clk 0:02:17]}  a5 {[%clk 0:02:32]} 17. hxg4 {[%clk 0:02:16]}  hxg4 {[%clk 0:02:32]} 18. b3 {[%clk 0:02:16]}  Nd7 {[%clk 0:02:30]} 19. Ba3 {[%clk 0:02:15]}  b6 {[%clk 0:02:29]} 20. Rh1 {[%clk 0:02:12]}  Nc5 {[%clk 0:02:28]} 21. Bxc5 {[%clk 0:02:11]}  bxc5 {[%clk 0:02:28]} 22. Kd3 {[%clk 0:01:59]}  g3 {[%clk 0:02:27]} 23. Rh4 {[%clk 0:01:53]}  c6 {[%clk 0:02:26]} 24. Qh1 {[%clk 0:01:48]}  Ra7 {[%clk 0:02:20]} 25. Qh3 {[%clk 0:01:45]}  Qxh3 {[%clk 0:02:18]} 26. Rxh3 {[%clk 0:01:44]}  cxd5 {[%clk 0:02:03]} 27. Nxd5 {[%clk 0:01:43]}  Nf6 {[%clk 0:01:58]} 28. Ncb6 {[%clk 0:01:36]}  Ne8 {[%clk 0:01:45]} 29. Rah1 {[%clk 0:01:25]}  Rff7 {[%clk 0:01:44]} 30. Rh4 {[%clk 0:01:22]}  Rfb7 {[%clk 0:01:42]} 31. Nc4 {[%clk 0:01:21]}  Rd7 {[%clk 0:01:38]} 32. Rg4 {[%clk 0:01:19]}  Kf8 {[%clk 0:01:33]} 33. Rh5 {[%clk 0:01:07]}  Nc7 {[%clk 0:01:21]} 34. Ncb6 {[%clk 0:00:52]}  Rf7 {[%clk 0:01:17]} 35. Nxc7 {[%clk 0:00:52]}  Raxc7 {[%clk 0:01:11]} 36. Rg6 {[%clk 0:00:48]}  Rc6 {[%clk 0:00:59]} 37. Nc4 {[%clk 0:00:42]}  Rd7 {[%clk 0:00:54]} 38. Nxa5 {[%clk 0:00:31]}  Rc8 {[%clk 0:00:48]} 39. Nc4 {[%clk 0:00:18]}  d5 {[%clk 0:00:47]} 40. exd5 {[%clk 0:00:19]}  Rxd5+ {[%clk 0:00:47]} 41. Ke4 {[%clk 0:00:19]}  Rd4+ {[%clk 0:00:41]} 42. Kf5 {[%clk 0:00:19]}  Re8 {[%clk 0:00:39]} 43. Kg4 {[%clk 0:00:18]}  e4 {[%clk 0:00:37]} 44. Rf5+ {[%clk 0:00:17]}  Kg8 {[%clk 0:00:37]} 45. fxe4 {[%clk 0:00:17]}  Rexe4 {[%clk 0:00:36]} 46. Kh3 {[%clk 0:00:13]}  Re1 {[%clk 0:00:30]} 47. Kg4 {[%clk 0:00:12]}  f3+ {[%clk 0:00:27]} 48. Kxf3 {[%clk 0:00:13]}  Rf1+ {[%clk 0:00:27]} 49. Ke3 {[%clk 0:00:12]}  Rxf5 {[%clk 0:00:28]} 50. c3 {[%clk 0:00:12]}  Rd7 {[%clk 0:00:25]} 51. Rxg3 {[%clk 0:00:12]}  Re7+ {[%clk 0:00:22]} 52. Kd3 {[%clk 0:00:12]}  Rd5+ {[%clk 0:00:22]} 53. Kc2 {[%clk 0:00:12]}  Re2+ {[%clk 0:00:23]} 54. Kb1 {[%clk 0:00:11]}  Rd1# {[%clk 0:00:23]} 0-1


[Site "https://www.chess.com"]

[Event "Titled Tuesday Blitz December 27 Early 2022"]
[White "Slade, Theodore"]
[Black "Yuan, Qingyu"]
[WhiteFideId "426547"]
[BlackFideId "8609772"]
[WhiteElo "1995"]
[BlackElo "2373"]
[Result "0-1"]
[Round "05"]
[TimeControl "180+2"]
[Date "2022.12.27"]
[WhiteClock "0:00:01"]
[BlackClock "0:00:07"]

1. d4 {[%clk 0:03:00]}  Nf6 {[%clk 0:02:59]} 2. c4 {[%clk 0:03:01]}  e6 {[%clk 0:03:00]} 3. g3 {[%clk 0:03:01]}  d5 {[%clk 0:03:00]} 4. Bg2 {[%clk 0:03:02]}  dxc4 {[%clk 0:03:00]} 5. Nf3 {[%clk 0:03:02]}  c5 {[%clk 0:03:01]} 6. O-O {[%clk 0:02:58]}  Nc6 {[%clk 0:03:01]} 7. dxc5 {[%clk 0:02:58]}  Qxd1 {[%clk 0:03:02]} 8. Rxd1 {[%clk 0:02:58]}  Bxc5 {[%clk 0:03:01]} 9. Nbd2 {[%clk 0:02:59]}  c3 {[%clk 0:03:02]} 10. bxc3 {[%clk 0:03:00]}  O-O {[%clk 0:03:03]} 11. Nb3 {[%clk 0:02:59]}  Be7 {[%clk 0:03:03]} 12. c4 {[%clk 0:02:59]}  Bd7 {[%clk 0:03:03]} 13. Bb2 {[%clk 0:02:56]}  Rfc8 {[%clk 0:03:03]} 14. Rab1 {[%clk 0:02:46]}  Be8 {[%clk 0:02:57]} 15. c5 {[%clk 0:02:40]}  Nd5 {[%clk 0:02:40]} 16. Ne5 {[%clk 0:02:32]}  Ncb4 {[%clk 0:01:41]} 17. a3 {[%clk 0:02:28]}  Na6 {[%clk 0:01:41]} 18. Bxd5 {[%clk 0:02:12]}  exd5 {[%clk 0:01:41]} 19. Rxd5 {[%clk 0:02:13]}  Nxc5 {[%clk 0:01:34]} 20. Nxc5 {[%clk 0:02:14]}  Rxc5 {[%clk 0:01:24]} 21. Rxc5 {[%clk 0:02:11]}  Bxc5 {[%clk 0:01:25]} 22. Rc1 {[%clk 0:02:08]}  b6 {[%clk 0:01:23]} 23. Nd3 {[%clk 0:02:03]}  Bd6 {[%clk 0:01:23]} 24. e4 {[%clk 0:01:57]}  f6 {[%clk 0:01:18]} 25. f4 {[%clk 0:01:54]}  Rd8 {[%clk 0:01:05]} 26. Kf2 {[%clk 0:01:44]}  Bxa3 {[%clk 0:00:58]} 27. Bxa3 {[%clk 0:01:26]}  Rxd3 {[%clk 0:00:59]} 28. Rc8 {[%clk 0:01:22]}  Rxa3 {[%clk 0:00:41]} 29. Rxe8+ {[%clk 0:01:22]}  Kf7 {[%clk 0:00:42]} 30. Rb8 {[%clk 0:01:23]}  h5 {[%clk 0:00:36]} 31. Rb7+ {[%clk 0:01:19]}  Kg6 {[%clk 0:00:36]} 32. h3 {[%clk 0:01:15]}  Ra5 {[%clk 0:00:30]} 33. g4 {[%clk 0:01:13]}  hxg4 {[%clk 0:00:27]} 34. hxg4 {[%clk 0:01:14]}  b5 {[%clk 0:00:28]} 35. e5 {[%clk 0:01:11]}  fxe5 {[%clk 0:00:25]} 36. fxe5 {[%clk 0:01:12]}  a6 {[%clk 0:00:22]} 37. Ke3 {[%clk 0:01:11]}  Ra4 {[%clk 0:00:22]} 38. Kf3 {[%clk 0:01:04]}  Ra3+ {[%clk 0:00:18]} 39. Ke4 {[%clk 0:01:04]}  Ra4+ {[%clk 0:00:14]} 40. Kd5 {[%clk 0:01:01]}  Rxg4 {[%clk 0:00:14]} 41. Rb6+ {[%clk 0:01:01]}  Kf5 {[%clk 0:00:12]} 42. Rxa6 {[%clk 0:01:02]}  Re4 {[%clk 0:00:12]} 43. e6 {[%clk 0:00:36]}  Re5+ {[%clk 0:00:11]} 44. Kd4 {[%clk 0:00:37]}  Rxe6 {[%clk 0:00:12]} 45. Ra7 {[%clk 0:00:25]}  g5 {[%clk 0:00:10]} 46. Rb7 {[%clk 0:00:25]}  Re4+ {[%clk 0:00:07]} 47. Kd3 {[%clk 0:00:24]}  Re5 {[%clk 0:00:07]} 48. Kd4 {[%clk 0:00:14]}  Kf4 {[%clk 0:00:06]} 49. Ra7 {[%clk 0:00:11]}  Rf5 {[%clk 0:00:06]} 50. Ra1 {[%clk 0:00:10]}  g4 {[%clk 0:00:06]} 51. Rf1+ {[%clk 0:00:10]}  Kg5 {[%clk 0:00:07]} 52. Rg1 {[%clk 0:00:11]}  Rf8 {[%clk 0:00:06]} 53. Rb1 {[%clk 0:00:10]}  Rb8 {[%clk 0:00:06]} 54. Ke3 {[%clk 0:00:10]}  b4 {[%clk 0:00:07]} 55. Kf2 {[%clk 0:00:10]}  b3 {[%clk 0:00:07]} 56. Rb2 {[%clk 0:00:11]}  Kf4 {[%clk 0:00:07]} 57. Kg2 {[%clk 0:00:10]}  g3 {[%clk 0:00:07]} 58. Kg1 {[%clk 0:00:10]}  Kf3 {[%clk 0:00:08]} 59. Rb1 {[%clk 0:00:10]}  b2 {[%clk 0:00:08]} 60. Rf1+ {[%clk 0:00:10]}  Kg4 {[%clk 0:00:08]} 61. Rb1 {[%clk 0:00:11]}  Kh3 {[%clk 0:00:07]} 62. Kh1 {[%clk 0:00:11]}  Rc8 {[%clk 0:00:06]} 63. Rg1 {[%clk 0:00:02]}  Rc1 {[%clk 0:00:07]} 64. Rxc1 {[%clk 0:00:01]}  bxc1=Q# {[%clk 0:00:07]} 0-1


[Site "https://www.chess.com"]

[Event "Titled Tuesday Blitz December 27 Early 2022"]
[White "Srebrnic, Marko"]
[Black "Beerdsen, Thomas"]
[WhiteFideId "14603616"]
[BlackFideId "1030108"]
[WhiteElo "2366"]
[BlackElo "2507"]
[Result "0-1"]
[Round "05"]
[TimeControl "180+2"]
[Date "2022.12.27"]
[WhiteClock "0:00:02"]
[BlackClock "0:00:53"]

1. e4 {[%clk 0:03:00]}  e6 {[%clk 0:02:57]} 2. d4 {[%clk 0:02:59]}  d5 {[%clk 0:02:58]} 3. Nc3 {[%clk 0:03:00]}  Bb4 {[%clk 0:02:58]} 4. e5 {[%clk 0:03:00]}  Bf8 {[%clk 0:02:59]} 5. f4 {[%clk 0:02:49]}  c5 {[%clk 0:02:59]} 6. Nf3 {[%clk 0:02:47]}  Nh6 {[%clk 0:02:57]} 7. Bd3 {[%clk 0:02:40]}  Nc6 {[%clk 0:02:55]} 8. O-O {[%clk 0:02:36]}  cxd4 {[%clk 0:02:39]} 9. Nb5 {[%clk 0:02:32]}  Bc5 {[%clk 0:02:36]} 10. Ng5 {[%clk 0:01:59]}  a6 {[%clk 0:02:30]} 11. Nd6+ {[%clk 0:01:58]}  Bxd6 {[%clk 0:02:30]} 12. exd6 {[%clk 0:01:59]}  Qxd6 {[%clk 0:02:30]} 13. Qh5 {[%clk 0:01:54]}  Bd7 {[%clk 0:02:26]} 14. f5 {[%clk 0:01:42]}  O-O-O {[%clk 0:02:18]} 15. f6 {[%clk 0:01:38]}  e5 {[%clk 0:01:52]} 16. fxg7 {[%clk 0:01:37]}  Rhg8 {[%clk 0:01:52]} 17. Nxf7 {[%clk 0:01:12]}  Nxf7 {[%clk 0:01:51]} 18. Rxf7 {[%clk 0:01:12]}  Be8 {[%clk 0:01:27]} 19. Qf5+ {[%clk 0:00:19]}  Kb8 {[%clk 0:01:26]} 20. Rf6 {[%clk 0:00:19]}  Qe7 {[%clk 0:01:13]} 21. Re6 {[%clk 0:00:19]}  Qxg7 {[%clk 0:01:12]} 22. Qf1 {[%clk 0:00:11]}  Bd7 {[%clk 0:01:09]} 23. Rf6 {[%clk 0:00:11]}  Bh3 {[%clk 0:01:09]} 24. Rf2 {[%clk 0:00:10]}  e4 {[%clk 0:01:06]} 25. Bf4+ {[%clk 0:00:09]}  Ka7 {[%clk 0:01:07]} 26. Bg3 {[%clk 0:00:05]}  exd3 {[%clk 0:01:05]} 27. gxh3 {[%clk 0:00:05]}  dxc2 {[%clk 0:01:03]} 28. Rxc2 {[%clk 0:00:05]}  h5 {[%clk 0:01:01]} 29. h4 {[%clk 0:00:05]}  Rdf8 {[%clk 0:00:51]} 30. Qd3 {[%clk 0:00:03]}  Nb4 {[%clk 0:00:51]} 31. Qd2 {[%clk 0:00:03]}  Nxc2 {[%clk 0:00:52]} 32. Qxc2 {[%clk 0:00:03]}  Qe5 {[%clk 0:00:52]} 33. Qd3 {[%clk 0:00:01]}  Qe3+ {[%clk 0:00:51]} 34. Qxe3 {[%clk 0:00:02]}  dxe3 {[%clk 0:00:52]} 35. Rd1 {[%clk 0:00:02]}  d4 {[%clk 0:00:53]} 0-1


[Site "https://www.chess.com"]

[Event "Titled Tuesday Blitz December 27 Early 2022"]
[White "Strahov, Andrej"]
[Black "Tarnowska, Aleksandra"]
[WhiteFideId "4165489"]
[BlackFideId "1180967"]
[WhiteElo "2398"]
[BlackElo "1835"]
[Result "1-0"]
[Round "05"]
[TimeControl "180+2"]
[Date "2022.12.27"]
[WhiteClock "0:00:13"]
[BlackClock "0:00:01"]

1. e4 {[%clk 0:02:59]}  c5 {[%clk 0:02:58]} 2. Nf3 {[%clk 0:02:57]}  e6 {[%clk 0:02:58]} 3. d4 {[%clk 0:02:58]}  cxd4 {[%clk 0:02:59]} 4. Nxd4 {[%clk 0:02:58]}  a6 {[%clk 0:02:58]} 5. c4 {[%clk 0:02:56]}  Nf6 {[%clk 0:02:56]} 6. Nc3 {[%clk 0:02:53]}  Bb4 {[%clk 0:02:56]} 7. Qd3 {[%clk 0:02:53]}  Nc6 {[%clk 0:02:54]} 8. Be2 {[%clk 0:02:51]}  Qc7 {[%clk 0:02:03]} 9. O-O {[%clk 0:02:24]}  O-O {[%clk 0:01:26]} 10. Bg5 {[%clk 0:01:54]}  Bxc3 {[%clk 0:01:16]} 11. bxc3 {[%clk 0:01:47]}  Ne5 {[%clk 0:01:11]} 12. Qg3 {[%clk 0:01:44]}  Nxe4 {[%clk 0:01:08]} 13. Qh4 {[%clk 0:01:36]}  Nxg5 {[%clk 0:01:02]} 14. Qxg5 {[%clk 0:01:37]}  Nxc4 {[%clk 0:00:57]} 15. f4 {[%clk 0:01:37]}  Nd2 {[%clk 0:00:42]} 16. f5 {[%clk 0:01:21]}  f6 {[%clk 0:00:21]} 17. Qg4 {[%clk 0:01:16]}  Nxf1 {[%clk 0:00:18]} 18. Rxf1 {[%clk 0:01:10]}  Qxc3 {[%clk 0:00:19]} 19. h4 {[%clk 0:00:51]}  Qe3+ {[%clk 0:00:18]} 20. Kh1 {[%clk 0:00:49]}  e5 {[%clk 0:00:13]} 21. Bc4+ {[%clk 0:00:36]}  Kh8 {[%clk 0:00:13]} 22. Nb3 {[%clk 0:00:32]}  b5 {[%clk 0:00:10]} 23. Bd5 {[%clk 0:00:32]}  Qd3 {[%clk 0:00:09]} 24. Rd1 {[%clk 0:00:30]}  Qc2 {[%clk 0:00:02]} 25. Bxa8 {[%clk 0:00:24]}  Qxa2 {[%clk 0:00:02]} 26. Bd5 {[%clk 0:00:23]}  a5 {[%clk 0:00:02]} 27. Nc5 {[%clk 0:00:23]}  Qc2 {[%clk 0:00:02]} 28. Ne4 {[%clk 0:00:22]}  b4 {[%clk 0:00:02]} 29. Nd6 {[%clk 0:00:22]}  b3 {[%clk 0:00:01]} 30. Nf7+ {[%clk 0:00:22]}  Rxf7 {[%clk 0:00:01]} 31. Bxf7 {[%clk 0:00:21]}  b2 {[%clk 0:00:02]} 32. Ba2 {[%clk 0:00:21]}  a4 {[%clk 0:00:01]} 33. Bb1 {[%clk 0:00:18]}  Qc1 {[%clk 0:00:01]} 34. Qxa4 {[%clk 0:00:13]} 1-0


[Site "https://www.chess.com"]

[Event "Titled Tuesday Blitz December 27 Early 2022"]
[White "Svane, Rasmus"]
[Black "Grigorov, Grigor"]
[WhiteFideId "4657101"]
[BlackFideId "2907313"]
[WhiteElo "2623"]
[BlackElo "2510"]
[Result "0-1"]
[Round "05"]
[TimeControl "180+2"]
[Date "2022.12.27"]
[WhiteClock "0:00:01"]
[BlackClock "0:00:04"]

1. Nf3 {[%clk 0:02:54]}  Nf6 {[%clk 0:02:59]} 2. g3 {[%clk 0:02:53]}  b6 {[%clk 0:02:59]} 3. Bg2 {[%clk 0:02:51]}  Bb7 {[%clk 0:02:59]} 4. O-O {[%clk 0:02:52]}  e6 {[%clk 0:02:58]} 5. c4 {[%clk 0:02:51]}  Be7 {[%clk 0:02:58]} 6. d4 {[%clk 0:02:51]}  O-O {[%clk 0:02:58]} 7. Re1 {[%clk 0:02:52]}  Ne4 {[%clk 0:02:58]} 8. Bf4 {[%clk 0:02:39]}  f5 {[%clk 0:02:51]} 9. Qc2 {[%clk 0:02:23]}  Nc6 {[%clk 0:02:43]} 10. Nc3 {[%clk 0:02:21]}  Nxc3 {[%clk 0:02:35]} 11. bxc3 {[%clk 0:02:22]}  Na5 {[%clk 0:02:30]} 12. c5 {[%clk 0:01:21]}  Be4 {[%clk 0:02:28]} 13. Qa4 {[%clk 0:01:19]}  d6 {[%clk 0:02:28]} 14. cxd6 {[%clk 0:01:17]}  cxd6 {[%clk 0:02:27]} 15. c4 {[%clk 0:01:09]}  Rc8 {[%clk 0:02:22]} 16. Rac1 {[%clk 0:01:08]}  Qe8 {[%clk 0:01:56]} 17. Qb4 {[%clk 0:01:01]}  d5 {[%clk 0:01:42]} 18. c5 {[%clk 0:01:00]}  Nc4 {[%clk 0:01:41]} 19. Bd6 {[%clk 0:00:35]}  Bxd6 {[%clk 0:01:26]} 20. cxd6 {[%clk 0:00:36]}  Bxf3 {[%clk 0:01:09]} 21. exf3 {[%clk 0:00:37]}  Qd7 {[%clk 0:01:08]} 22. Bf1 {[%clk 0:00:29]}  Nxd6 {[%clk 0:01:03]} 23. Ba6 {[%clk 0:00:29]}  Rxc1 {[%clk 0:00:46]} 24. Rxc1 {[%clk 0:00:30]}  f4 {[%clk 0:00:26]} 25. Kg2 {[%clk 0:00:30]}  h5 {[%clk 0:00:22]} 26. a4 {[%clk 0:00:22]}  fxg3 {[%clk 0:00:22]} 27. hxg3 {[%clk 0:00:22]}  h4 {[%clk 0:00:22]} 28. Bb5 {[%clk 0:00:12]}  Qf7 {[%clk 0:00:20]} 29. f4 {[%clk 0:00:09]}  Ne4 {[%clk 0:00:18]} 30. Qe1 {[%clk 0:00:05]}  Qg6 {[%clk 0:00:16]} 31. Bd3 {[%clk 0:00:05]}  Rxf4 {[%clk 0:00:16]} 32. f3 {[%clk 0:00:05]}  hxg3 {[%clk 0:00:13]} 33. Qe3 {[%clk 0:00:04]}  Rh4 {[%clk 0:00:07]} 34. fxe4 {[%clk 0:00:02]}  Rh2+ {[%clk 0:00:07]} 35. Kg1 {[%clk 0:00:02]}  Qg4 {[%clk 0:00:07]} 36. exd5 {[%clk 0:00:01]}  Rh1+ {[%clk 0:00:04]} 0-1


[Site "https://www.chess.com"]